Cogmind - Beta 16.1 @@@ ROGUE MODE // 2026.03.24 @ 20:18:54 Player: JaideBun Result: Destroyed by G-47 Trooper with Particle Gun Performance ------------- Evolutions (0) 0 Regions Visited (1) 200 Robots Destroyed (3) 15 Value Destroyed (75) 75 Prototype IDs (0) 0 Alien Tech Used (0) 0 Bonus (0) 0 TOTAL SCORE: 290 Bonus ------- None Cogmind --------- Core Integrity 0/250 Matter 300/300 Energy 90/100 System Corruption 0% Temperature Cool (9) Movement Core (50) Location -10/Materials Parts ------- > --- POWER (1) -------- (None) > --- PROPULSION (2) --- (None) > --- UTILITY (2) ------ (None) > --- WEAPON (2) ------- (None) > --- INVENTORY (5) ---- Aluminum Leg Small Laser Peak State ------------ > --- POWER ------------ Ion Engine > --- PROPULSION ------- Aluminum Leg Aluminum Leg > --- UTILITY ---------- Small Storage Unit Improved Terrain Scanner > --- WEAPON ----------- Small Laser Light Assault Rifle > --- INVENTORY -------- Ion Engine Mining Laser [Rating: 9] Favorites ----------- Power Ion Engine Engine Ion Engine Propulsion Aluminum Leg Leg Aluminum Leg Utility Small Storage Unit Device Improved Terrain Scanner Storage Small Storage Unit Weapon Light Assault Rifle Energy Gun Small Laser Ballistic Gun Light Assault Rifle Special Weapon Mining Laser Build | -11 -10 ------- Run | Yrd Mat Slots Evolved . | . . Power . | . . Propulsion . | . . Utility . | . . Weapon . | . . Parts Attached 10 | 7 3 Power 2 | 1 1 Engine 2 | 1 1 Core . | . . Reactor . | . . Propulsion 3 | 2 1 Treads . | . . Leg 3 | 2 1 Wheel . | . . Hover . | . . Flight . | . . Utility 2 | 2 . Device 1 | 1 . Storage 1 | 1 . Processor . | . . Hackware . | . . Protection . | . . Artifact . | . . Weapon 3 | 2 1 Energy Gun 1 | 1 . Energy Cannon . | . . Ballistic Gun 1 | 1 . Ballistic Cannon . | . . Launcher . | . . Special Weapon 1 | . 1 Impact Weapon . | . . Slashing Weapon . | . . Piercing Weapon . | . . Special Melee Weapon . | . . Unidentified Prototypes . | . . Parts Lost 7 | . 7 Power 2 | . 2 Propulsion 2 | . 2 Utility 1 | . 1 Weapon 2 | . 2 Highest Loss Streak 5 | . 5 To Critical Strikes . | . . Average Backups 2 | . 2 Power . | . . Propulsion . | . . Utility . | . . Weapon . | . 1 Tool/Special . | . . Unused Backups 1 | . 1 Power . | . . Propulsion 1 | . 1 Utility . | . . Weapon . | . . Tool/Special . | . . Average Slot Usage (%) 80 | . 80 Engine 13 | . 13 Leg 25 | . 25 Device 7 | . 7 Storage 14 | . 14 Energy Gun 3 | . 3 Ballistic Gun 12 | . 12 Special Weapon 3 | . 3 Peak Build Rating 9 | 9 9 Average Rating 6 | 4 6 On Entrance 4 | . 9 Avg Prop Armor Cover (%) . | . . Naked Turns 1 | . 1 Heaviest Build 13 | 13 13 Greatest Support 20 | 20 20 Greatest Overweight (x) 1 | 1 1 Average Overweight (x) . | . . Largest Inventory Capacity 8 | 8 8 Average Capacity 7 | 6 7 Most Carried 4 | 3 4 Average Carried 2 | . 2 Final Capacity 8 | 8 5 Final Carried 2 | 2 2 Class Distribution -------------------- 100% | Mutant Dominant Class ---------------- Mutant | -10/Materials Resources | -11 -10 ----------- Run | Yrd Mat Matter Collected 316 | 241 75 Remotely . | . . Salvage Created 96 | 25 71 Parts 10 | 3 7 Haulers Intercepted . | . . Recyclers Shooed . | . . Parts Field Recycled . | . . Retrieved Matter . | . . Parts Self-Destructed . | . . Prevented . | . . Parts Restored . | . . Kills | -11 -10 ------- Run | Yrd Mat Combat Hostiles Destroyed 2 | . 2 Guns 2 | . 2 Classes Destroyed 2 | 1 1 Tunneler 1 | 1 . Grunt 2 | . 2 Best Kill Streak 2 | 1 2 Combat Bots Only 2 | . 2 Max Kills in Single Turn 1 | 1 1 Gunslinging . | . . Exploded . | . . Melee . | . . Uniques/NPCs Destroyed . | . . Combat | -11 -10 -------- Run | Yrd Mat Hostile Shots Fired 91 | . 91 Missed 37 | . 37 Hits 54 | . 54 Projectile 54 | . 54 Critical Strikes 1 | . 1 Damage Taken 770 | . 770 Core 262 | . 262 Absorbed by Shields . | . . Core Remaining (%) 100 | 100 . Volleys Fired 24 | 2 22 Largest 2 | 2 2 Hottest 120 | 60 120 Shots Fired 28 | 4 24 Gun 26 | 4 22 Cannon . | . . Launcher . | . . Special 2 | . 2 Kinetic 24 | 2 22 Thermal 4 | 2 2 Explosive . | . . Electromagnetic . | . . Robot Hit Streak 12 | 1 12 Robot Miss Streak 1 | 1 1 Penetration Max . | . . Secondary Targets . | . . Shots Hit Robots 19 | 2 17 Core Hits 7 | 1 6 Critical Kills . | . . Critical Parts Destroyed . | . . Critical Strikes . | . . Melee Attacks . | . . Impact . | . . Slashing . | . . Piercing . | . . Sneak Attacks . | . . Combat Hostiles . | . . Follow-up Attacks . | . . Damage Inflicted 156 | 17 139 Guns 154 | 17 137 Cannons . | . . Explosions . | . . Melee . | . . Ramming 2 | . 2 Kinetic 154 | 17 137 Thermal . | . . Explosive . | . . Electromagnetic . | . . Impact . | . . Slashing . | . . Piercing . | . . Highest Corruption . | . . Average Corruption . | . . Corruption Purged . | . . Corruption Blocked . | . . Overload Shots . | . . Overflow Damage . | . . Projectiles . | . . Explosions . | . . Melee . | . . Knockbacks . | . . Impact . | . . Kinetic . | . . Secondary . | . . Self-Inflicted Damage . | . . Shots . | . . Rammed . | . . Targets Rammed 1 | . 1 Kicked 1 | . 1 Crushed . | . . Highest Temperature 40 | 20 40 Average Temperature 13 | 12 14 Received Heat Transfer 402 | . 402 Siege Activations . | . . Martial Activations . | . . Shielding Activations . | . . Robots Disrupted . | . . Combat Hostiles . | . . Robots Corrupted . | . . Combat Hostiles . | . . Parts Fried . | . . Impact Corruptions . | . . Robots Melted . | . . Combat Hostiles . | . . Parts Melted . | . . Heat Transferred . | . . Parts Sabotaged . | . . Parts Stolen . | . . Parts Stripped . | . . Power Chain Reactions . | . . Alert | -11 -10 ------- Run | Yrd Mat Maximum Alert Level . | . . Low Security (%) 100 | 100 100 Level 1 . | . . Level 2 . | . . Level 3 . | . . Level 4 . | . . Level 5 . | . . High Security . | . . Max Security . | . . Peak Influence 40 | 5 40 Initial . | . . Average 3 | . 4 Influence Increases 57 | 5 52 Destroy 0b10 Robot/C 40 | . 40 Destroy 0b10 Robot/NC 5 | 5 . Destroy Leader 10 | . 10 Destroy Structure 2 | . 2 Influence Decreases 57 | 5 52 Time Decay 37 | 5 32 Lost Part 20 | . 20 Squads Dispatched 2 | . 2 Investigation 1 | . 1 Extermination . | . . Reinforcement 1 | . 1 Assault . | . . Garrison . | . . Intercept . | . . Searches Triggered . | . . Construction Impeded . | . . Haulers Reinforced . | . . Active Scanning Responses . | . . Cargo Convoy Interrupts . | . . Stealth | -11 -10 --------- Run | Yrd Mat Distress Signals 3 | . 3 Communications Jammed . | . . Distress Signals . | . . Times Spotted 5 | . 5 Peak Tracking Total 4 | . 4 Tactical Retreats . | . . Traps | -11 -10 ------- Run | Yrd Mat Traps Triggered 2 | . 2 Indirectly . | . . Trap Hack Attempts . | . . Triggered . | . . Disarmed . | . . Reprogrammed . | . . Reused . | . . Traps Extracted . | . . Installed . | . . Triggered . | . . Machines | -11 -10 ---------- Run | Yrd Mat Machines Disabled . | . . Max in Single Turn . | . . Machines Repaired . | . . Machines Dismantled . | . . Machines Sabotaged . | . . Overloaded Fab Kills . | . . Hacking | -11 -10 --------- Run | Yrd Mat Machines Accessed 1 | . 1 Terminals 1 | . 1 Fabricators . | . . Repair Stations . | . . Recycling Units . | . . Scanalyzers . | . . Garrison Access . | . . Total Hacks 2 | . 2 Successful . | . . Failed 2 | . 2 Catastrophic . | . . Database Lockouts . | . . Manual . | . . Terminals 2 | . 2 Fabricators . | . . Repair Stations . | . . Recycling Units . | . . Scanalyzers . | . . Garrison Access . | . . Terminal Hacks . | . . Fabricator Hacks . | . . Repair Station Hacks . | . . Recycling Unit Hacks . | . . Scanalyzer . | . . Garrison Access Hacks . | . . Unauthorized Hacks . | . . Terminals . | . . Fabricators . | . . Repair Stations . | . . Recycling Units . | . . Scanalyzers . | . . Garrison Access . | . . Data Cores Recovered . | . . Used . | . . Hacking Detections 1 | . 1 Full Trace Events 1 | . 1 Feedback Events . | . . Feedback Blocked . | . . Robot Schematics Acquired . | . . Robots Built . | . . Authchips . | . . Time . | . . Total Robot Build Rating . | . . Part Schematics Acquired . | . . Parts Built . | . . Authchips . | . . Time . | . . Total Part Build Rating . | . . Part Studies Acquired . | . . Parts Repaired . | . . Time . | . . Parts Recycled . | . . Recycled Matter . | . . Retrieved Matter . | . . Retrieved Components . | . . Parts Scanalyzed . | . . Part Schematics Acquired . | . . Parts Damaged . | . . Bothacking | -11 -10 ------------ Run | Yrd Mat Used RIF Installer . | . . Robots Hacked . | . . Non-combat . | . . Combat . | . . Robot Hacks Applied . | . . Relay Couplers Released . | . . Fabnet Peak Effective % . | . . Robots Rewired . | . . Allies Hacked . | . . Hacks Repelled . | . . Allies | -11 -10 -------- Run | Yrd Mat Total Allies . | . . Largest Group . | . . Highest-Rated Group . | . . Highest-Rated Ally . | . . Total Orders . | . . Ally Attacks . | . . Total Damage . | . . Kills . | . . Allies Corrupted . | . . Allies Melted . | . . Intel | -11 -10 ------- Run | Yrd Mat Active Infowar (turns) 110 | 4 106 Terrain 110 | 4 106 Robot Analysis Total . | . . Derelict Logs Recovered . | . . Drone Launches . | . . Drone Recoveries . | . . Exploration | -11 -10 ------------- Run | Yrd Mat Turns Passed 287 | 68 219 Spaces Moved 158 | 43 115 Core 6 | 6 . Treads . | . . Legs 152 | 37 115 Wheels . | . . Hover . | . . Flight . | . . Fastest Speed 50 | 50 120 Average Speed 119 | 114 121 Slowest Speed 190 | 120 190 Overloaded Moves . | . . Propulsion Burnouts . | . . Robots Hopped . | . . Potential Cave-ins . | . . Cave-ins Triggered . | . . Exploration Rate (%) 19 | 4 34 Regions Visited 1 Branch Regions . Pre-discovered Areas . | . . Known Exits Taken . | . . Unknown Exits Taken 1 | 1 . Scrap Searched . | . . Spaces Dug 2 | . 2 Terrain Destroyed 2 | . 2 Melee . | . . Projectile 2 | . 2 AOE . | . . Terrain Rammed . | . . Walls Destroyed . | . . Machines Disabled . | . . Actions | -11 -10 --------- Run | Yrd Mat Total 228 | 55 173 Wait 25 | . 25 Move 157 | 42 115 Hop . | . . Pick Up 6 | 4 2 Fast Attach 5 | 5 . Attach 5 | 2 3 Detach 3 | . 3 Swap . | . . Drop 2 | . 2 Fire 24 | 2 22 Melee . | . . Ram . | . . Kick 1 | . 1 Crush . | . . Escape Stasis . | . . Rewire . | . . Trap . | . . Miscellaneous . | . . Route ------- -11/Scrapyard -10/Materials (discovered 1 exit: [*Min]) History --------- Turn | Location | Event 11 | -11/Scrapyard | Discovered new exit (range 16) 69 | -11/Scrapyard | Entered Materials 208 | -10/Materials | Discovered new exit (range 12) 263 | -10/Materials | Core integrity fell below 50% 276 | -10/Materials | Core integrity fell below 20% 288 | -10/Materials | Destroyed by G-47 Trooper with Particle Gun Last Messages --------------- K-01 Serf destroyed. Acquired 15 matter. R-06 Scavenger inserts Visual Processing Unit into recycling unit. R-06 Scavenger inserts Heat Sink into recycling unit. Triggered Explosive Trap. An explosion rips through the floor. Ion Engine destroyed. R-06 Scavenger inserts Sml. Laser into recycling unit. U-05 Engineer builds a Wall. R-06 Scavenger inserts Ion Engine into recycling unit. Recycling unit begins recycling process. U-05 Engineer lays Concrete. Dropped Aluminum Leg. R-06 Scavenger collects Wheel. Dropped Sml. Storage Unit. U-05 Engineer lays Concrete. Map ----- +----------------------------------------------------+ | # ## #????????????????????? | | # ## #????????????????????? | | # """ ## ##??#????????????????? | | # """"" ## #????????????????????? | | # """"" ## #????????????????????? | | # """"" ##** #????????????????????? | | # """ ## %[ #??#?????????????????? | | # #! ! #????????????????????? | | # ## ##?#?????????????????? | | ##############+#############???????????? | | ??????#?????# + #???????????? | | ?##?????#???# ### #???????????? | | ?????? ?????# % #?# #???????????? | | ????????????# % #?# #???????????? | | ?#???#??????# #?# +???????????? | | ????????????# ### #???????????? | | #???????????# % + #???????????? | | ????????????+ ### #???????????? | | ######??????# #?# #???????????? | | ####### #?##########???????????? | | #?#####????????????????? | | < #?#"""#??????? +???????? | | ###"Y"###?##? #???????? | | # ##### " " # # #???????? | | "!"???# ## % #???????? | | ??????# ## r* @ #???????? | | ####### % ## ! #???????? | | ##ug ""u"" #???????? | | g """ #???????? | | """ #???????? | | %[ #???????? | | #???????? | | ####### #"Y"####### ###???????? | | ??????# ### #"""#?????? #?????????? | | ??????# #?# #####?????? #?????????? | | ??????#! !#?# #???????????#?????????? | | ??????##!!!!##?# #?????????????????????? | | ???????######??# #?????????????????????? | | ???????????????# #?????????????????????? | | ???????????????# #?????????????????????? | | ???????????????? #?????????????????????? | | ???????????????? #?????????????????????? | | ???????????????? ??????????????????????? | | ???????????????? ??????????????????????? | | ???????????????????????????????????????? | | ???????????????????????????????????????? | | ???????????????????????????????????????? | | ???????????????????????????????????????? | | ???????????????????????????????????????? | | ???????????????????????????????????????? | +----------------------------------------------------+ Best States ------------- Heat Dissipation 25 Energy Generation 10 Energy Capacity 250 Matter Stores 300 Matter Capacity 300 Sight Range 16 Terrain Scan Range 16 Terrain Scan Density 10 Evasion (%) 55 Item Schematics ----------------- None Robot Schematics ------------------ None Fabricated ------------ Nothing Repaired ---------- Nothing Studied --------- None Alien Tech Used ----------------- None Achievements -------------- None Challenges ------------ None Game ------ Seed DefenseHybridMantle Manual? 0 Play Time 00:07:18 Cumulative 3.2 hours Start 2026.03.24 @ 20:10:47 End 2026.03.24 @ 20:18:54 Sessions 1 Manual Loads 0 Difficulty Rogue Special Mode None Game No. 7 Rogue 7 Adventurer 0 Explorer 0 Win Type - Total 0 Types 0/0/0/0/0/0/0/0/0/0 Lore% 1 Gallery% 4 Achievement% 5 Wizard Run 0 Options --------- Layout 1 ASCII 0 Keyboard 0 Movement Numpad Keybinds 0 Fullscreen 1 Font 32/SmallcapsGlow Map View 50x35 Zoom Use 0% Tactical HUD 0 Map Filters NONE Filters NONE Steam 1 RUN: d0fb5290-ee07-492f-a816-cf49d4d8144d